[Event "African Online-ch U20-Open 2021"]
[Site "Online"]
[Date "2021.02.01"]
[Round "2.7"]
[White "Mohamed Aly, Karim"]
[Black "Vasco Mateus Felizardo Viageir"]
[Result "0-1"]
[ECO "E21"]
[WhiteElo "1585"]
[BlackElo "1862"]
[Annotator "NA RC"]
[PlyCount "118"]
[EventDate "2021.02.01"]
[EventType "swiss"]
[EventCountry "NET"]
[SourceTitle "playchess.com"]
[Source "ChessBase"]
[SourceQuality "1"]
[TimeControl "1500+10"]

1. d4 {[%emt 0:01:22]} Nf6 {[%emt 0:00:06]} 2. c4 {[%emt 0:00:03]} e6 {[%emt 0:00:07]} 3. Nf3 {[%emt 0:00:02]} Bb4+ {[%emt 0:00:16]} 4. Nc3 {[%emt 0:00:05]} O-O {[%emt 0:00:07]} 5. Bg5 {[%emt 0:00:02]} h6 {[%emt 0:00:06]} 6. Bh4 {[%emt 0:00:05]} d5 {[%emt 0:00:05]} 7. e3 {[%emt 0:00:03]} Nbd7 {[%emt 0:00:15]} 8. Bd3 {[%emt 0:00:05]} c6 {[%emt 0:00:09]} 9. O-O {[%emt 0:00:02]} dxc4 {[%emt 0:00:52]} 10. Bxc4 {[%emt 0:00:05]} b5 {[%emt 0:00:08]} 11. Be2 {[%emt 0:00:11]} Bb7 {[%emt 0:00:04]} 12. Qc2 {[%emt 0:00:04]} a6 {[%emt 0:00:11]} 13. Rfd1 {[%emt 0:00:18]} Qb6 {[%emt 0:00:32]} 14. a3 {[%emt 0:00:07]} Bxc3 {[%emt 0:01:07]} 15. Qxc3 {[%emt 0:00:25]} Nd5 {[%emt 0:00:10]} 16. Qc2 {[%emt 0:00:14]} c5 {[%emt 0:00:27]} 17. dxc5 {[%emt 0:00:07]} Nxc5 {[%emt 0:00:04]} 18. Rac1 {[%emt 0:00:30]} Rfc8 {[%emt 0:00:12]} 19. Qb1 {[%emt 0:00:10]} Nb3 {[%emt 0:00:33]} 20. Rxc8+ {[%emt 0:00:14]} Rxc8 {[%emt 0:00:03]} 21. Nd4 {[%emt 0:00:20]} Na5 {[%emt 0:01:50]} 22. Rc1 {[%emt 0:01:47]} Nc4 {[%emt 0:00:15]} 23. Bg3 {[%emt 0:00:28]} e5 {[%emt 0:05:57]} 24. Bxc4 {[%emt 0:00:34]} exd4 {[%emt 0:04:01]} 25. Bxd5 {[%emt 0:00:07]} Rxc1+ {[%emt 0:00:04]} 26. Qxc1 {[%emt 0:00:01]} Bxd5 {[%emt 0:00:02]} 27. Qc8+ {[%emt 0:00:03]} Kh7 {[%emt 0:00:11]} 28. Qf5+ {[%emt 0:00:02]} Qg6 {[%emt 0:00:04]} 29. Qxg6+ {[%emt 0:00:59]} Kxg6 {[%emt 0:00:03]} 30. exd4 {[%emt 0:00:03]} Kf5 {[%emt 0:00:05]} 31. f3 {[%emt 0:00:14]} Ke6 {[%emt 0:00:04]} 32. Kf2 {[%emt 0:00:03]} Bc4 {[%emt 0:00:02]} 33. Ke3 {[%emt 0:00:04]} Bf1 {[%emt 0:00:04]} 34. Kf2 {[%emt 0:00:07]} Bc4 {[%emt 0:00:02]} 35. Bf4 {[%emt 0:00:05]} Kd5 {[%emt 0:00:02]} 36. Be3 {[%emt 0:00:05]} Bd3 {[%emt 0:00:03]} 37. g3 {[%emt 0:00:05]} Kc4 {[%emt 0:00:02]} 38. Ke1 {[%emt 0:00:26]} Bf5 {[%emt 0:00:45]} 39. Kd2 {[%emt 0:00:13]} Be6 {[%emt 0:00:05]} 40. h4 {[%emt 0:00:20]} Bd5 {[%emt 0:00:03]} 41. f4 {[%emt 0:00:03]} h5 {[%emt 0:00:05]} 42. Bf2 {[%emt 0:00:20]} Be4 {[%emt 0:00:20]} 43. Kc1 {[%emt 0:00:21]} Kd3 {[%emt 0:00:05]} 44. Kd1 {[%emt 0:00:09]} Bf3+ {[%emt 0:00:03]} 45. Kc1 {[%emt 0:00:13]} Ke2 {[%emt 0:00:03]} 46. Bg1 {[%emt 0:00:04]} Kf1 {[%emt 0:00:03]} 47. Be3 {[%emt 0:00:02]} Kg2 {[%emt 0:00:02]} 48. Kd2 {[%emt 0:00:36]} Kxg3 {[%emt 0:00:04]} 49. Kc3 {[%emt 0:00:05]} Kxh4 {[%emt 0:00:05]} 50. Kb4 {[%emt 0:00:08]} Kg3 {[%emt 0:00:02]} 51. Kc5 {[%emt 0:00:07]} h4 {[%emt 0:00:01]} 52. d5 {[%emt 0:00:36]} h3 {[%emt 0:00:05]} 53. d6 {[%emt 0:00:05]} Bg4 {[%emt 0:00:02]} 54. f5 {[%emt 0:00:10]} Bxf5 {[%emt 0:00:03]} 55. Bd4 {[%emt 0:00:02]} h2 {[%emt 0:00:22]} 56. Be5+ {[%emt 0:00:02]} Kg2 {[%emt 0:00:01]} 57. Bxh2 {[%emt 0:00:02]} Kxh2 {[%emt 0:00:02]} 58. Kc6 {[%emt 0:00:01]} g5 {[%emt 0:00:01]} 59. d7 {[%emt 0:00:02]} Bxd7+ {[%emt 0:00:02]} 0-1

[Event "African Online-ch U20-Open 2021"]
[Site "Online"]
[Date "2021.02.01"]
[Round "2.8"]
[White "Mohamed Abderrahim, Taleb Mohamed"]
[Black "Palmer, Reegan"]
[Result "1-0"]
[ECO "C47"]
[WhiteElo "1799"]
[BlackElo "1325"]
[Annotator "NA RC"]
[PlyCount "69"]
[EventDate "2021.02.01"]
[EventType "swiss"]
[EventCountry "NET"]
[SourceTitle "playchess.com"]
[Source "ChessBase"]
[SourceQuality "1"]
[TimeControl "1500+10"]

1. e4 {[%emt 0:00:00]} e5 {[%emt 0:00:05]} 2. Nf3 {[%emt 0:00:04]} Nc6 {[%emt 0:00:03]} 3. Nc3 {[%emt 0:00:04]} d6 {[%emt 0:00:13]} 4. d4 {[%emt 0:00:05]} exd4 {[%emt 0:00:11]} 5. Nxd4 {[%emt 0:00:05]} Nf6 {[%emt 0:00:33]} 6. Be3 {[%emt 0:00:11]} Bg4 {[%emt 0:02:16]} 7. f3 {[%emt 0:00:10]} Bh5 {[%emt 0:00:04]} 8. Bb5 {[%emt 0:00:11]} Qd7 {[%emt 0:00:45]} 9. Nd5 {[%emt 0:00:48]} a6 {[%emt 0:01:21]} 10. Nxf6+ {[%emt 0:00:05]} gxf6 {[%emt 0:00:02]} 11. Ba4 {[%emt 0:00:20]} b5 {[%emt 0:01:24]} 12. Bb3 {[%emt 0:00:03]} Ne5 {[%emt 0:01:21]} 13. a4 {[%emt 0:00:54]} c5 {[%emt 0:00:47]} 14. Nf5 {[%emt 0:00:31]} c4 {[%emt 0:00:27]} 15. Ba2 {[%emt 0:00:35]} Rg8 {[%emt 0:01:09]} 16. Ng3 {[%emt 0:01:10]} Bg6 {[%emt 0:00:51]} 17. Qd5 {[%emt 0:00:13]} Qc6 {[%emt 0:00:36]} 18. Qxc6+ {[%emt 0:00:55]} Nxc6 {[%emt 0:00:02]} 19. O-O {[%emt 0:00:18]} h5 {[%emt 0:00:17]} 20. Bb1 {[%emt 0:00:35]} O-O-O {[%emt 0:00:51]} 21. axb5 {[%emt 0:00:19]} axb5 {[%emt 0:00:04]} 22. c3 {[%emt 0:00:10]} Be7 {[%emt 0:00:25]} 23. Bc2 {[%emt 0:00:39]} Kb7 {[%emt 0:00:40]} 24. Ne2 {[%emt 0:01:16]} d5 {[%emt 0:01:15]} 25. Nd4 {[%emt 0:00:41]} Bc5 {[%emt 0:00:30]} 26. exd5 {[%emt 0:02:14]} Rxd5 {[%emt 0:00:21]} 27. Be4 {[%emt 0:00:04]} Bxd4 {[%emt 0:01:52]} 28. cxd4 {[%emt 0:01:06]} Bxe4 {[%emt 0:00:29]} 29. fxe4 {[%emt 0:00:03]} Rd6 {[%emt 0:00:49]} 30. d5 {[%emt 0:00:47]} Ne5 {[%emt 0:00:55]} 31. Ra7+ {[%emt 0:00:08]} Kb8 {[%emt 0:00:35]} 32. Rfa1 {[%emt 0:00:08]} Rc8 {[%emt 0:00:07]} 33. R1a5 {[%emt 0:01:25]} b4 {[%emt 0:01:44]} 34. Rb5+ {[%emt 0:00:17]} Rb6 {[%emt 0:00:10]} 35. Bxb6 {[%emt 0:00:06]} 1-0

[Event "African Online-ch U20-Open 2021"]
[Site "Online"]
[Date "2021.02.01"]
[Round "2.10"]
[White "Bidi, Abdeljalil"]
[Black "Darius Patlo Banda"]
[Result "1-0"]
[ECO "C55"]
[WhiteElo "1750"]
[BlackElo "1369"]
[Annotator "NA RC"]
[PlyCount "105"]
[EventDate "2021.02.01"]
[EventType "swiss"]
[EventCountry "NET"]
[SourceTitle "playchess.com"]
[Source "ChessBase"]
[SourceQuality "1"]
[TimeControl "1500+10"]

1. e4 {[%emt 0:00:00]} e5 {[%emt 0:00:05]} 2. Nf3 {[%emt 0:00:02]} Nc6 {[%emt 0:00:04]} 3. Bc4 {[%emt 0:00:03]} Nf6 {[%emt 0:00:04]} 4. d3 {[%emt 0:00:03]} Be7 {[%emt 0:00:09]} 5. O-O {[%emt 0:00:02]} O-O {[%emt 0:00:04]} 6. Nc3 {[%emt 0:00:02]} d6 {[%emt 0:00:15]} 7. h3 {[%emt 0:00:02]} a6 {[%emt 0:00:24]} 8. d4 {[%emt 0:00:04]} exd4 {[%emt 0:00:40]} 9. Nxd4 {[%emt 0:00:04]} Ne5 {[%emt 0:00:27]} 10. Be2 {[%emt 0:00:07]} c5 {[%emt 0:00:17]} 11. Nf3 {[%emt 0:00:16]} b5 {[%emt 0:00:36]} 12. Bg5 {[%emt 0:01:31]} Bb7 {[%emt 0:00:49]} 13. Nxe5 {[%emt 0:00:20]} dxe5 {[%emt 0:00:11]} 14. Bxf6 {[%emt 0:00:08]} Bxf6 {[%emt 0:00:14]} 15. f3 {[%emt 0:00:35]} Qd4+ {[%emt 0:00:52]} 16. Qxd4 {[%emt 0:00:25]} exd4 {[%emt 0:00:36]} 17. Nd1 {[%emt 0:00:03]} Rfd8 {[%emt 0:00:22]} 18. Nf2 {[%emt 0:00:08]} d3 {[%emt 0:01:55]} 19. Nxd3 {[%emt 0:00:13]} c4 {[%emt 0:00:13]} 20. Nf2 {[%emt 0:00:29]} Bxb2 {[%emt 0:00:07]} 21. Rab1 {[%emt 0:00:02]} Bd4 {[%emt 0:00:06]} 22. Bxc4 {[%emt 0:00:07]} Bxe4 {[%emt 0:02:03]} 23. Bxf7+ {[%emt 0:00:06]} Kxf7 {[%emt 0:00:04]} 24. fxe4 {[%emt 0:00:02]} Rac8 {[%emt 0:00:05]} 25. Rbc1 {[%emt 0:02:07]} Be3 {[%emt 0:00:59]} 26. Rce1 {[%emt 0:00:06]} Bd2 {[%emt 0:00:42]} 27. Re2 {[%emt 0:00:03]} Rxc2 {[%emt 0:00:09]} 28. Nd3+ {[%emt 0:00:33]} Kg8 {[%emt 0:01:09]} 29. Nb4 {[%emt 0:00:17]} Rb2 {[%emt 0:00:20]} 30. Nc6 {[%emt 0:00:15]} Re8 {[%emt 0:00:41]} 31. e5 {[%emt 0:01:17]} Bc3 {[%emt 0:00:28]} 32. Rxb2 {[%emt 0:00:59]} Bxb2 {[%emt 0:00:04]} 33. Re1 {[%emt 0:00:03]} Ba3 {[%emt 0:00:25]} 34. Kf2 {[%emt 0:02:10]} Kf7 {[%emt 0:00:20]} 35. Kf3 {[%emt 0:00:20]} Ke6 {[%emt 0:01:16]} 36. Ke4 {[%emt 0:00:20]} Bb2 {[%emt 0:01:10]} 37. Rd1 {[%emt 0:01:01]} Ba3 {[%emt 0:00:37]} 38. Rd3 {[%emt 0:00:19]} Bc5 {[%emt 0:00:48]} 39. Rd5 {[%emt 0:00:47]} Ba3 {[%emt 0:00:23]} 40. Nd4+ {[%emt 0:00:38]} Ke7 {[%emt 0:00:27]} 41. Nf5+ {[%emt 0:00:05]} Kf8 {[%emt 0:01:34]} 42. Nd6 {[%emt 0:02:19]} Rd8 {[%emt 0:01:37]} 43. Rd3 {[%emt 0:00:27]} Bb4 {[%emt 0:01:03]} 44. Kd5 {[%emt 0:00:07]} Ke7 {[%emt 0:00:39]} 45. Re3 {[%emt 0:02:50]} Rd7 {[%emt 0:01:11]} 46. a3 {[%emt 0:01:21]} Bd2 {[%emt 0:00:33]} 47. Rf3 {[%emt 0:00:10]} Ba5 {[%emt 0:01:37]} 48. Rf7+ {[%emt 0:00:13]} Kd8 {[%emt 0:00:08]} 49. Rf8+ {[%emt 0:00:19]} Kc7 {[%emt 0:00:33]} 50. Rc8+ {[%emt 0:00:03]} Kb6 {[%emt 0:00:09]} 51. Rc6+ {[%emt 0:00:04]} Ka7 {[%emt 0:00:10]} 52. e6 {[%emt 0:00:02]} Re7 {[%emt 0:00:27]} 53. Nc8+ {[%emt 0:00:05]} 1-0

[Event "African Online-ch U20-Open 2021"]
[Site "Online"]
[Date "2021.02.01"]
[Round "2.11"]
[White "Potgieter, Edward"]
[Black "Celso Andre Manjate"]
[Result "0-1"]
[ECO "C01"]
[WhiteElo "1229"]
[BlackElo "1721"]
[Annotator "NA RC"]
[PlyCount "132"]
[EventDate "2021.02.01"]
[EventType "swiss"]
[EventCountry "NET"]
[SourceTitle "playchess.com"]
[Source "ChessBase"]
[SourceQuality "1"]
[TimeControl "1500+10"]

1. e4 {[%emt 0:00:00]} e6 {[%emt 0:00:06]} 2. d4 {[%emt 0:00:03]} d5 {[%emt 0:00:15]} 3. exd5 {[%emt 0:00:01]} exd5 {[%emt 0:00:36]} 4. Bd3 {[%emt 0:00:04]} Bd6 {[%emt 0:00:03]} 5. Nf3 {[%emt 0:00:02]} Nf6 {[%emt 0:00:02]} 6. O-O {[%emt 0:00:03]} O-O {[%emt 0:00:02]} 7. h3 {[%emt 0:00:02]} c6 {[%emt 0:00:14]} 8. Nc3 {[%emt 0:00:10]} Be6 {[%emt 0:00:11]} 9. Re1 {[%emt 0:01:26]} Qc8 {[%emt 0:04:14]} 10. Ne2 {[%emt 0:03:35]} Qc7 {[%emt 0:04:41]} 11. c3 {[%emt 0:00:58]} Nbd7 {[%emt 0:02:55]} 12. Ng5 {[%emt 0:00:47]} h6 {[%emt 0:00:16]} 13. Nxe6 {[%emt 0:00:16]} fxe6 {[%emt 0:00:03]} 14. Be3 {[%emt 0:00:23]} e5 {[%emt 0:00:45]} 15. dxe5 {[%emt 0:00:49]} Bxe5 {[%emt 0:00:06]} 16. Nd4 {[%emt 0:00:51]} Rae8 {[%emt 0:00:13]} 17. Bg6 {[%emt 0:00:45]} Re7 {[%emt 0:00:42]} 18. Nf5 {[%emt 0:03:46]} Re6 {[%emt 0:00:05]} 19. Nd4 {[%emt 0:05:17]} Re7 {[%emt 0:01:25]} 20. Qc2 {[%emt 0:01:53]} c5 {[%emt 0:03:16]} 21. Nf5 {[%emt 0:01:48]} Re6 {[%emt 0:02:04]} 22. Nh4 {[%emt 0:00:44]} Bh2+ {[%emt 0:03:02]} 23. Kh1 {[%emt 0:00:18]} Bd6 {[%emt 0:01:37]} 24. Bf5 {[%emt 0:01:33]} Ree8 {[%emt 0:00:13]} 25. Ng6 {[%emt 0:00:29]} Rf7 {[%emt 0:00:04]} 26. Nh4 {[%emt 0:00:18]} Rfe7 {[%emt 0:00:08]} 27. Ng6 {[%emt 0:00:13]} Rf7 {[%emt 0:00:11]} 28. g3 {[%emt 0:01:32]} Ne4 {[%emt 0:00:50]} 29. Bxe4 {[%emt 0:00:38]} Rxe4 {[%emt 0:00:05]} 30. Nf4 {[%emt 0:00:21]} Qc6 {[%emt 0:00:54]} 31. Rad1 {[%emt 0:00:04]} d4 {[%emt 0:00:27]} 32. cxd4 {[%emt 0:00:49]} Rxe3+ {[%emt 0:00:03]} 33. d5 {[%emt 0:00:08]} Rxe1+ {[%emt 0:00:03]} 34. Rxe1 {[%emt 0:00:20]} Qc8 {[%emt 0:00:05]} 35. Ne6 {[%emt 0:00:11]} Nf6 {[%emt 0:00:05]} 36. Qc4 {[%emt 0:00:09]} b5 {[%emt 0:00:06]} 37. Qb3 {[%emt 0:00:04]} a6 {[%emt 0:00:11]} 38. Qe3 {[%emt 0:00:07]} Nxd5 {[%emt 0:00:08]} 39. Qe4 {[%emt 0:00:09]} Nf6 {[%emt 0:00:06]} 40. Qe2 {[%emt 0:00:03]} Re7 {[%emt 0:00:06]} 41. f4 {[%emt 0:00:06]} Qc6+ {[%emt 0:00:09]} 42. Kg1 {[%emt 0:00:09]} c4 {[%emt 0:00:08]} 43. Qd2 {[%emt 0:00:21]} Bc5+ {[%emt 0:00:05]} 44. Nxc5 {[%emt 0:00:06]} Qxc5+ {[%emt 0:00:04]} 45. Kf1 {[%emt 0:00:07]} Rxe1+ {[%emt 0:00:07]} 46. Qxe1 {[%emt 0:00:05]} Qd5 {[%emt 0:00:04]} 47. Kg1 {[%emt 0:00:30]} Qe4 {[%emt 0:00:06]} 48. Qa5 {[%emt 0:00:09]} Qe3+ {[%emt 0:00:05]} 49. Kg2 {[%emt 0:00:12]} Qe2+ {[%emt 0:00:03]} 50. Kg1 {[%emt 0:00:05]} Qd1+ {[%emt 0:00:09]} 51. Kg2 {[%emt 0:00:04]} Qc2+ {[%emt 0:00:03]} 52. Kg1 {[%emt 0:00:08]} Qc1+ {[%emt 0:00:02]} 53. Kf2 {[%emt 0:00:08]} Qxb2+ {[%emt 0:00:02]} 54. Kf3 {[%emt 0:00:02]} Qd4 {[%emt 0:00:12]} 55. Qxa6 {[%emt 0:00:09]} Qd3+ {[%emt 0:00:08]} 56. Kg2 {[%emt 0:00:04]} c3 {[%emt 0:00:03]} 57. g4 {[%emt 0:00:15]} c2 {[%emt 0:00:09]} 58. Qe6+ {[%emt 0:00:22]} Kh7 {[%emt 0:00:05]} 59. g5 {[%emt 0:00:08]} Qe4+ {[%emt 0:00:08]} 60. Qxe4+ {[%emt 0:00:06]} Nxe4 {[%emt 0:00:02]} 61. gxh6 {[%emt 0:00:02]} c1=Q {[%emt 0:00:04]} 62. hxg7 {[%emt 0:00:03]} Kxg7 {[%emt 0:00:03]} 63. f5 {[%emt 0:00:02]} Qe3 {[%emt 0:00:08]} 64. f6+ {[%emt 0:00:01]} Kxf6 {[%emt 0:00:03]} 65. a4 {[%emt 0:00:02]} Qg3+ {[%emt 0:00:03]} 66. Kh1 {[%emt 0:00:04]} Nf2# {[%emt 0:00:04]} 0-1

[Event "African Online-ch U20-Open 2021"]
[Site "Online"]
[Date "2021.02.01"]
[Round "2.12"]
[White "Lion, Pierre"]
[Black "Beghriche, Rami Tadjeddine"]
[Result "0-1"]
[ECO "B57"]
[WhiteElo "1586"]
[BlackElo "1783"]
[Annotator "NA RC"]
[PlyCount "56"]
[EventDate "2021.02.01"]
[EventType "swiss"]
[EventCountry "NET"]
[SourceTitle "playchess.com"]
[Source "ChessBase"]
[SourceQuality "1"]
[TimeControl "1500+10"]

1. e4 {[%emt 0:00:00]} c5 {[%emt 0:00:20]} 2. Nf3 {[%emt 0:00:41]} Nc6 {[%emt 0:00:13]} 3. d4 {[%emt 0:00:42]} cxd4 {[%emt 0:00:02]} 4. Nxd4 {[%emt 0:00:09]} Nf6 {[%emt 0:00:03]} 5. Nc3 {[%emt 0:00:21]} d6 {[%emt 0:00:22]} 6. Bc4 {[%emt 0:00:52]} Qb6 {[%emt 0:00:11]} 7. Nb3 {[%emt 0:00:21]} e6 {[%emt 0:00:12]} 8. O-O {[%emt 0:00:20]} Be7 {[%emt 0:00:10]} 9. Be3 {[%emt 0:00:29]} Qc7 {[%emt 0:00:05]} 10. f4 {[%emt 0:00:57]} a6 {[%emt 0:00:35]} 11. a4 {[%emt 0:00:06]} d5 {[%emt 0:00:30]} 12. Bd3 {[%emt 0:02:52]} dxe4 {[%emt 0:00:11]} 13. Nxe4 {[%emt 0:00:02]} Nd5 {[%emt 0:00:07]} 14. Bd2 {[%emt 0:00:42]} Ncb4 {[%emt 0:00:08]} 15. Rf3 {[%emt 0:00:48]} Nxd3 {[%emt 0:00:29]} 16. cxd3 {[%emt 0:01:39]} Bd7 {[%emt 0:00:08]} 17. Kh1 {[%emt 0:00:43]} O-O {[%emt 0:00:18]} 18. Rc1 {[%emt 0:00:22]} Qb8 {[%emt 0:00:25]} 19. Nd4 {[%emt 0:00:25]} Qa7 {[%emt 0:00:21]} 20. Ne2 {[%emt 0:00:24]} Rac8 {[%emt 0:00:15]} 21. N2c3 {[%emt 0:00:09]} Qb6 {[%emt 0:00:33]} 22. Nxd5 {[%emt 0:01:30]} exd5 {[%emt 0:00:17]} 23. Nc3 {[%emt 0:00:03]} Bc6 {[%emt 0:00:10]} 24. Qe1 {[%emt 0:01:11]} d4 {[%emt 0:00:31]} 25. Ne4 {[%emt 0:00:09]} f5 {[%emt 0:00:18]} 26. Ba5 {[%emt 0:01:39]} Qxb2 {[%emt 0:00:53]} 27. Rf2 {[%emt 0:00:03]} Qa3 {[%emt 0:00:37]} 28. Ng3 {[%emt 0:01:04]} Qxc1 {[%emt 0:00:10]} 0-1

[Event "African Online-ch U20-Open 2021"]
[Site "Online"]
[Date "2021.02.01"]
[Round "2.14"]
[White "Ben Abbes, Ayoub"]
[Black "Wael, Mostafa"]
[Result "1-0"]
[ECO "B01"]
[WhiteElo "1481"]
[BlackElo "1492"]
[Annotator "NA RC"]
[PlyCount "151"]
[EventDate "2021.02.01"]
[EventType "swiss"]
[EventCountry "NET"]
[SourceTitle "playchess.com"]
[Source "ChessBase"]
[SourceQuality "1"]
[TimeControl "1500+10"]

1. e4 {[%emt 0:00:00]} d5 {[%emt 0:00:03]} 2. exd5 {[%emt 0:00:04]} Qxd5 {[%emt 0:00:02]} 3. Nc3 {[%emt 0:00:03]} Qd8 {[%emt 0:00:02]} 4. Bc4 {[%emt 0:00:05]} Bf5 {[%emt 0:00:07]} 5. Nf3 {[%emt 0:00:04]} e6 {[%emt 0:00:03]} 6. d3 {[%emt 0:00:04]} Nf6 {[%emt 0:00:02]} 7. Bg5 {[%emt 0:00:05]} Be7 {[%emt 0:00:02]} 8. h3 {[%emt 0:00:03]} h6 {[%emt 0:00:04]} 9. Bh4 {[%emt 0:00:05]} O-O {[%emt 0:00:06]} 10. Qd2 {[%emt 0:00:09]} c6 {[%emt 0:00:02]} 11. O-O {[%emt 0:00:21]} Re8 {[%emt 0:00:11]} 12. Rfe1 {[%emt 0:00:22]} Nbd7 {[%emt 0:00:19]} 13. Ne5 {[%emt 0:00:16]} Nxe5 {[%emt 0:00:11]} 14. Rxe5 {[%emt 0:00:04]} Nd7 {[%emt 0:00:04]} 15. Bxe7 {[%emt 0:00:05]} Rxe7 {[%emt 0:00:03]} 16. Re3 {[%emt 0:00:34]} Nf6 {[%emt 0:00:13]} 17. Rae1 {[%emt 0:00:13]} Re8 {[%emt 0:00:23]} 18. Qc1 {[%emt 0:00:15]} Qd7 {[%emt 0:00:18]} 19. Rg3 {[%emt 0:00:23]} Bg6 {[%emt 0:00:20]} 20. Ne4 {[%emt 0:00:20]} Nxe4 {[%emt 0:00:13]} 21. dxe4 {[%emt 0:00:04]} Qe7 {[%emt 0:00:45]} 22. Bd3 {[%emt 0:00:10]} Kf8 {[%emt 0:00:28]} 23. Qf4 {[%emt 0:00:41]} Qf6 {[%emt 0:03:42]} 24. Qxf6 {[%emt 0:02:17]} gxf6 {[%emt 0:00:05]} 25. Kf1 {[%emt 0:00:30]} Rad8 {[%emt 0:00:12]} 26. Rge3 {[%emt 0:00:19]} Rd4 {[%emt 0:00:30]} 27. c3 {[%emt 0:00:57]} Rd7 {[%emt 0:00:05]} 28. Ke2 {[%emt 0:00:23]} Red8 {[%emt 0:00:04]} 29. Rd1 {[%emt 0:00:13]} c5 {[%emt 0:02:24]} 30. Bc2 {[%emt 0:00:11]} Rxd1 {[%emt 0:00:10]} 31. Bxd1 {[%emt 0:00:03]} b5 {[%emt 0:01:27]} 32. Rd3 {[%emt 0:00:21]} Ke7 {[%emt 0:00:13]} 33. Rxd8 {[%emt 0:00:11]} Kxd8 {[%emt 0:00:06]} 34. Ke3 {[%emt 0:00:04]} e5 {[%emt 0:00:07]} 35. a4 {[%emt 0:00:05]} a6 {[%emt 0:00:03]} 36. b4 {[%emt 0:00:22]} c4 {[%emt 0:00:56]} 37. a5 {[%emt 0:00:27]} Kc7 {[%emt 0:00:34]} 38. f4 {[%emt 0:00:18]} Kd6 {[%emt 0:00:54]} 39. Bg4 {[%emt 0:00:07]} Kc7 {[%emt 0:00:16]} 40. h4 {[%emt 0:00:20]} Kb8 {[%emt 0:00:13]} 41. h5 {[%emt 0:00:34]} Bh7 {[%emt 0:00:08]} 42. Bd7 {[%emt 0:00:05]} Kc7 {[%emt 0:00:24]} 43. Be8 {[%emt 0:00:03]} Bg8 {[%emt 0:00:03]} 44. g3 {[%emt 0:00:34]} Kd6 {[%emt 0:00:21]} 45. Kf3 {[%emt 0:00:12]} Kc7 {[%emt 0:00:13]} 46. Kg4 {[%emt 0:00:09]} Bh7 {[%emt 0:00:14]} 47. Bxf7 {[%emt 0:00:25]} Bxe4 {[%emt 0:00:05]} 48. fxe5 {[%emt 0:00:09]} fxe5 {[%emt 0:00:06]} 49. Bg6 {[%emt 0:00:05]} Bg2 {[%emt 0:01:33]} 50. Bc2 {[%emt 0:00:25]} Kd6 {[%emt 0:00:32]} 51. Kf5 {[%emt 0:00:07]} Bf1 {[%emt 0:01:02]} 52. Bd1 {[%emt 0:01:36]} Bd3+ {[%emt 0:00:32]} 53. Kf6 {[%emt 0:00:41]} e4 {[%emt 0:00:12]} 54. Kg6 {[%emt 0:00:08]} e3+ {[%emt 0:00:02]} 55. Kxh6 {[%emt 0:00:02]} e2 {[%emt 0:00:06]} 56. Bxe2 {[%emt 0:00:04]} Bxe2 {[%emt 0:00:02]} 57. Kg6 {[%emt 0:00:09]} Bd3+ {[%emt 0:00:07]} 58. Kg7 {[%emt 0:00:03]} Ke5 {[%emt 0:04:07]} 59. h6 {[%emt 0:00:06]} Bf5 {[%emt 0:00:03]} 60. g4 {[%emt 0:00:13]} Bc2 {[%emt 0:05:07]} 61. g5 {[%emt 0:00:06]} Kf4 {[%emt 0:00:16]} 62. g6 {[%emt 0:00:03]} Ke3 {[%emt 0:00:32]} 63. h7 {[%emt 0:00:04]} Bxg6 {[%emt 0:00:03]} 64. Kxg6 {[%emt 0:00:04]} Kd3 {[%emt 0:00:03]} 65. h8=Q {[%emt 0:00:03]} Kc2 {[%emt 0:00:03]} 66. Qf6 {[%emt 0:00:05]} Kb3 {[%emt 0:00:02]} 67. Qxa6 {[%emt 0:00:04]} Kxc3 {[%emt 0:00:01]} 68. Qxb5 {[%emt 0:00:02]} Kb3 {[%emt 0:00:02]} 69. Qc5 {[%emt 0:00:04]} c3 {[%emt 0:00:02]} 70. b5 {[%emt 0:00:01]} Ka4 {[%emt 0:00:03]} 71. a6 {[%emt 0:00:10]} Ka5 {[%emt 0:00:08]} 72. a7 {[%emt 0:00:07]} Ka4 {[%emt 0:00:02]} 73. Qc4+ {[%emt 0:00:05]} Ka3 {[%emt 0:00:04]} 74. Qxc3+ {[%emt 0:00:04]} Ka2 {[%emt 0:00:02]} 75. a8=R+ {[%emt 0:00:11]} Kb1 {[%emt 0:00:02]} 76. Ra1# {[%emt 0:00:04]} 1-0